Cogmind - Beta 16.1 @@@ ROGUE MODE // 2026.03.27 @ 21:15:36 Player: stevie364 Result: Destroyed by H-81 Overseer with Heavy Linear Accelerator Performance ------------- Evolutions (9) 4500 Regions Visited (25) 5000 Robots Destroyed (273) 1365 Value Destroyed (7888) 7888 Prototype IDs (51) 1020 Alien Tech Used (4) 800 Bonus (2037) 2037 TOTAL SCORE: 22610 Bonus ------- High Alert Combat Kills 370 Follower Combat Kills 3272 Met Warlord at Base 500 MAIN.C Attacked Warlord 500 Warlord Defense Kills 568 Built Enhanced Grunts 300 Met R17 at Cetus 500 Friendly Fire -3973 Cogmind --------- Core Integrity 0/1600 Matter 300/300 Energy 79/100 System Corruption 22% Temperature Cool (0) Movement Core (50) Location -1/Access Parts ------- > --- POWER (2) -------- (None) > --- PROPULSION (9) --- (None) > --- UTILITY (11) ----- Machine Analyzer Advanced Hacking Suite > --- WEAPON (3) ------- (None) > --- INVENTORY (5) ---- Improved Gyrokinetic Inverter Advanced Sensor Array Perforator Vortex Lance (7) Peak State ------------ > --- POWER ------------ Micro Antimatter Reactor Light Quantum Reactor > --- PROPULSION ------- Improved Antigrav System Improved Antigrav System Improved Antigrav System Improved Antigrav System Improved Gyrokinetic Inverter Combat Antigrav System Combat Antigrav System Combat Antigrav System Combat Linear Gravjet > --- UTILITY ---------- Advanced Cooling System Large Storage Unit Machine Analyzer Advanced Sensor Array Experimental Signal Interpreter Long-range Terrain Scanner Centrium Heavy Armor Plating AEGIS Remote Shield Advanced Hacking Suite Experimental System Shield > --- WEAPON ----------- Enhanced Nova Cannon Plasma Lance Enhanced Force Lance > --- INVENTORY -------- Micro Antimatter Reactor Antigrav System Advanced Matter Compressor Improved Phase Shifter Advanced Hacking Suite Dimensional Node Initializer Transdimensional Reconstructor High-powered Transdimensional Reconstructor Terrabomb Null Cannon Enhanced Hardcell Cannon Perforator Fusion Bomb Launcher Vortex Lance [Rating: 197] Favorites ----------- Power Light Nuclear Core Engine Ion Engine Power Core Light Nuclear Core Reactor Micro Antimatter Reactor Propulsion Light Treads Treads Light Treads Leg Improved Aluminum Leg Wheel Wheel Hover Unit Gyrokinetic Inverter Flight Unit Xenon Bombardment Thruster Utility Advanced Hacking Suite Device Advanced Cooling System Storage High-capacity Storage Unit Processor Improved Signal Interpreter Hackware Advanced Hacking Suite Protection Improved Utility Shielding Artifact Phase Armor Weapon Phasing Sabre Energy Gun Advanced Variable Charge Gun Energy Cannon Matter Neutralizer Ballistic Gun Gauss Rifle Ballistic Cannon Mass Driver Launcher Improved Grenade Launcher Impact Weapon Maul Slashing Weapon Phasing Sabre Piercing Weapon Enhanced Force Lance Build | -11 -10 -10 -9 -9 -9 -8 -8 -8 -8 -6 -6 -6 -5 -4 -4 -4 -4 -4 -4 -3 -3 -3 -2 -2 -1 ------- Run | Yrd Mat Min Mat Min Exi Min Mat Sto Rec Fac Ext Cet Fac Fac Was Fac Upp Upp War Pro Res Qua Res Tes Acc Slots Evolved 18 | . . . 2 . . . 2 . . 4 . . 2 2 . . . . . . 2 . 2 . 2 Power 1 | . . . . . . . . . . . . . . . . . . . . . 1 . . . . Propulsion 7 | . . . 1 . . . 1 . . 2 . . . . . . . . . . . . 2 . 1 Utility 9 | . . . 1 . . . 1 . . 2 . . 2 2 . . . . . . . . . . 1 Weapon 1 | . . . . . . . . . . . . . . . . . . . . . 1 . . . . Parts Attached 292 | 7 6 4 29 2 . 8 9 22 14 5 6 12 29 8 5 4 3 1 15 3 28 15 25 6 26 Power 32 | 1 3 . 2 . . 2 . 2 1 . . 1 4 1 1 1 . . 1 . 4 2 1 . 5 Engine 10 | 1 3 . 2 . . . . 1 . . . . 1 . . . . . . . 1 . . . 1 Core 7 | . . . . . . 2 . 1 1 . . . 3 . . . . . . . . . . . . Reactor 15 | . . . . . . . . . . . . 1 . 1 1 1 . . 1 . 3 2 1 . 4 Propulsion 97 | 2 . 2 12 . . 3 3 8 7 2 . 4 13 1 . . 1 . 4 1 9 4 8 . 13 Treads 31 | 2 . 2 10 . . 2 2 6 4 . . 1 1 . . . . . . . . . 1 . . Leg 3 | . . . 1 . . . . . . . . . 2 . . . . . . . . . . . . Wheel 6 | . . . 1 . . 1 1 . . . . . 3 . . . . . . . . . . . . Hover 47 | . . . . . . . . . . 1 . . 6 1 . . 1 . 4 1 9 4 7 . 13 Flight 10 | . . . . . . . . 2 3 1 . 3 1 . . . . . . . . . . . . Utility 96 | 2 2 . 5 1 . 2 3 4 4 3 2 4 7 6 2 2 2 1 7 1 9 6 11 3 7 Device 40 | 1 . . . 1 . 2 1 2 . 1 1 1 5 2 1 . . . 3 . 5 2 6 2 4 Storage 7 | 1 2 . . . . . . . . . . . . 1 . . . . . . 1 . 1 1 . Processor 12 | . . . . . . . . . 2 . . 1 . 1 . 1 . . 1 . 2 3 . . 1 Hackware 9 | . . . . . . . . . . 2 . . 1 2 1 . 1 . . . . . 1 . 1 Protection 27 | . . . 5 . . . 2 2 2 . 1 2 1 . . 1 1 1 3 1 1 . 3 . 1 Artifact 1 | . . . . . . . . . . . . . . . . . . . . . . 1 . . . Weapon 67 | 2 1 2 10 1 . 1 3 8 2 . 4 3 5 . 2 1 . . 3 1 6 3 5 3 1 Energy Gun 11 | . . . 1 . . 1 1 4 1 . . 1 . . . . . . . . 1 . . 1 . Energy Cannon 13 | . . 1 1 . . . . 1 . . 1 . 2 . 1 . . . . . 2 . 3 1 . Ballistic Gun 15 | 2 1 1 6 . . . 2 1 . . . 1 . . . . . . . . 1 . . . . Ballistic Cannon 6 | . . . . . . . . 1 . . . 1 . . . 1 . . 1 . . 1 . 1 . Launcher 10 | . . . 1 1 . . . 1 . . 1 . 2 . 1 . . . 1 . . . 1 . 1 Special Weapon . | . . . . . . . . . . . . . . . . . . . . . . . . . . Impact Weapon 4 | . . . 1 . . . . . . . . . 1 . . . . . . . . 1 1 . . Slashing Weapon 4 | . . . . . . . . . 1 . 2 . . . . . . . . 1 . . . . . Piercing Weapon 4 | . . . . . . . . . . . . . . . . . . . 1 . 2 1 . . . Special Melee Weapon . | . . . . . . . . . . . . . . . . . . . . . . . . . . Unidentified Prototypes 55 | . . . 3 . . . . 9 . . . 4 7 . . . . . 8 . 2 4 10 7 1 Corrupted Parts 1 | . . . . . . . . . . . . 1 . . . . . . . . . . . . . System Corruption 2 | . . . . . . . . . . . . 2 . . . . . . . . . . . . . Parts Lost 114 | . 2 5 6 . . 6 . 5 . . 1 1 15 1 . . . 2 7 . 12 11 . 4 36 Power 16 | . 1 . 1 . . . . 1 . . . . 3 . . . . . 1 . 2 2 . . 5 Propulsion 50 | . . 2 4 . . 3 . 2 . . 1 1 8 . . . . 2 4 . 2 3 . 1 17 Utility 29 | . . . . . . 2 . 2 . . . . 3 1 . . . . 1 . 5 4 . 2 9 Weapon 19 | . 1 3 1 . . 1 . . . . . . 1 . . . . . 1 . 3 2 . 1 5 Highest Loss Streak 11 | . 1 3 2 . . 3 . 2 . . 1 1 5 1 . . . 2 6 . 5 4 . 2 11 To Critical Strikes 3 | . . . . . . . . . . . . . . . . . . . . . 1 . . . 2 Average Backups 11 | . 7 14 18 19 20 19 19 19 19 4 5 4 4 5 9 9 10 9 9 4 10 13 12 13 12 Power 1 | . 1 4 3 1 1 2 1 . . . . . . . 1 2 2 2 1 . . . . 1 1 Propulsion 2 | . 1 . 2 6 6 5 5 7 6 . . . . 1 . . . . . . 3 4 3 1 . Utility 3 | . . 4 4 5 6 6 6 5 6 3 4 3 1 2 3 3 3 3 2 1 2 2 1 3 2 Weapon 4 | . 4 5 7 7 7 6 6 5 5 1 1 1 2 1 3 3 4 4 4 3 4 4 2 3 4 Tool/Special . | . . . . . . . . . . . . . . . . . . . . . . . . . . Unused Backups 59 | . 1 . 8 1 . 2 8 4 5 1 . . . . 4 1 1 1 1 . 1 5 7 2 6 Power 6 | . . . 1 . . 1 . . . . . . . . . 1 . . 1 . . 1 1 . . Propulsion 20 | . . . 2 . . 1 5 2 2 . . . . . 3 . . . . . . 2 1 2 . Utility 14 | . . . . 1 . . . 2 2 1 . . . . . . 1 1 . . . . 4 . 2 Weapon 14 | . 1 . 5 . . . 3 . 1 . . . . . 1 . . . . . 1 . 1 . 1 Tool/Special 5 | . . . . . . . . . . . . . . . . . . . . . . 2 . . 3 Average Slot Usage (%) 92 | . 99 95 96 100 100 89 99 90 95 94 95 91 90 83 94 94 94 91 91 87 89 91 85 89 76 Engine 3 | . 14 14 10 11 11 . . 6 8 . . . . . . . . . . . . . . . . Core 2 | . . . . . . 10 9 2 . 6 6 5 3 . . . . . . . . . . . . Reactor 2 | . . . . . . . . . . . . . . 2 5 5 5 5 4 5 6 8 7 7 6 Treads 12 | . 28 27 28 33 33 26 26 35 34 . . 4 1 . . . . . . . . . . . . Hover 10 | . . . . . . . . . . 1 6 . 12 24 26 26 26 23 23 20 24 23 26 30 27 Flight 5 | . . . . . . . . . . 32 28 26 10 . . . . . . . . . . . . Device 11 | . 14 14 10 11 11 12 17 9 9 6 11 4 12 9 10 10 10 10 9 9 11 19 15 12 11 Storage 5 | . 14 14 11 11 11 11 9 9 9 . . . . 2 5 5 5 5 5 5 4 4 4 4 3 Processor 5 | . . . . . . . . . . 12 6 6 11 12 15 14 10 10 10 10 12 11 4 4 7 Hackware 6 | . . . . . . . . . . 12 13 13 8 13 15 15 15 15 15 15 10 9 8 8 6 Protection 7 | . . . 10 11 11 4 9 8 14 6 6 13 11 4 4 5 10 10 9 9 2 . 5 7 2 Energy Gun 1 | . . . 1 . . 4 6 6 . . . 5 1 4 . . . . . . 1 . . . . Energy Cannon 2 | . . 4 4 4 11 . . 1 . 6 2 . 2 . 3 2 . 4 4 4 4 2 1 3 2 Ballistic Gun 6 | . 27 19 14 16 11 16 10 9 17 . . 2 . . . . . . . . 1 . . . . Slashing Weapon 1 | . . . . . . . . . . 6 6 3 4 5 5 5 5 . . 4 2 . . . . Piercing Weapon 1 | . . . . . . . . . . . . . . . . . . . . . 1 7 9 8 8 Peak Build Rating 197 | 7 8 9 22 24 24 26 33 38 46 61 62 80 93 105 109 110 111 112 137 109 157 171 178 186 197 Average Rating 74 | 5 7 8 14 23 24 24 28 30 34 55 58 70 78 93 106 107 110 107 116 108 138 152 165 179 157 On Entrance 69 | . 7 8 8 22 24 24 25 28 29 46 61 55 63 74 105 108 110 111 104 73 109 136 143 176 166 Avg Prop Armor Cover (%) 7 | . . . 12 . . 18 15 . . 7 5 3 8 12 . . . . . . 4 . . . 5 Naked Turns . | . . . . . . . . . . . . . . . . . . . . . . . . . . Heaviest Build 119 | 14 49 49 57 58 58 59 62 75 71 19 25 30 41 44 47 51 51 57 79 49 86 77 105 109 119 Greatest Support 130 | 40 40 40 69 69 69 69 86 86 85 28 31 80 42 65 65 65 65 66 73 52 89 85 104 105 130 Greatest Overweight (x) 5 | 1 1 1 5 . . 5 5 1 . . 1 1 4 1 . . . . 4 . 1 1 1 1 1 Average Overweight (x) . | . . 1 . . . 1 1 . . . . . . . . . . . . . . . . . . Largest Inventory Capacity 20 | 8 20 20 20 20 20 20 20 20 20 5 5 5 5 10 10 10 10 10 10 10 15 15 15 15 15 Average Capacity 12 | 7 11 20 20 20 20 20 20 20 19 5 5 5 5 7 10 10 10 10 10 10 12 15 15 15 14 Most Carried 20 | 1 14 16 20 20 20 20 20 20 20 5 5 5 5 10 10 10 10 10 10 9 15 15 15 15 15 Average Carried 11 | . 7 14 18 19 20 19 19 19 19 4 4 4 4 6 9 9 9 9 9 4 10 14 14 14 13 Final Capacity 20 | 8 20 20 20 20 20 20 20 20 5 5 5 5 5 10 10 10 10 10 10 10 15 15 15 15 5 Final Carried 20 | 1 14 15 20 20 20 20 20 19 5 5 5 3 4 10 10 10 10 9 10 5 15 15 15 15 5 Class Distribution -------------------- 20% | Scavenger-Mutant 19% | Mutant 19% | Hacker-Scout 16% | Hacker-Mutant 8% | Hacker-Sprinter 4% | Commander-Mutant Dominant Class ---------------- Mutant | -10/Materials Mutant | -10/Mines Scavenger-Mutant | -9/Materials Mutant | -9/Mines Mutant | -9/Exiles Scavenger-Mutant | -8/Mines Scavenger-Mutant | -8/Materials Scavenger-Mutant | -8/Storage Mutant | -8/Recycling Hacker-Scout | -6/Factory Hacker-Sprinter | -6/Extension Scavenger-Mutant | -6/Cetus Ninja | -5/Factory Hacker-Scout | -4/Factory Hacker-Scout | -4/Waste Hacker-Scout | -4/Factory Hacker-Scout | -4/Upper Caves Hacker-Scout | -4/Upper Caves Hacker-Mutant | -4/Warlord Hacker-Scout | -3/Proximity Caves Hacker-Mutant | -3/Research Hacker-Scout | -3/Quarantine Hacker-Mutant | -2/Research Hacker-Mutant | -2/Testing Hacker-Mutant | -1/Access Resources | -11 -10 -10 -9 -9 -9 -8 -8 -8 -8 -6 -6 -6 -5 -4 -4 -4 -4 -4 -4 -3 -3 -3 -2 -2 -1 ----------- Run | Yrd Mat Min Mat Min Exi Min Mat Sto Rec Fac Ext Cet Fac Fac Was Fac Upp Upp War Pro Res Qua Res Tes Acc Matter Collected 8040 | 312 295 108 616 133 . 305 226 944 129 90 550 232 429 86 132 96 169 178 675 85 391 297 446 . 1116 Remotely . | . . . . . . . . . . . . . . . . . . . . . . . . . . Salvage Created 11195 | 171 519 366 1153 147 . 444 665 1304 296 191 1030 74 890 228 277 241 74 153 390 48 589 526 32 54 1333 Parts 624 | 13 40 17 79 17 . 27 46 81 15 3 49 . 47 9 . 5 7 7 19 2 20 49 3 8 61 Haulers Intercepted 26 | . 2 . 4 . . . 1 6 . 2 2 . 2 . . 2 . . . . 4 . . . 1 Recyclers Shooed 5 | . 1 . 1 . . . . . 1 . 1 . . . . . . . . . . . . . 1 Parts Field Recycled . | . . . . . . . . . . . . . . . . . . . . . . . . . . Retrieved Matter . | . . . . . . . . . . . . . . . . . . . . . . . . . . Parts Self-Destructed 28 | . . . . . . . . . . . . . . . . . 18 9 . 1 . . . . . Prevented 5 | . . . . . . . . . . . . . . . . . . 2 . 3 . . . . . Parts Restored . | . . . . . . . . . . . . . . . . . . . . . . . . . . Kills | -11 -10 -10 -9 -9 -9 -8 -8 -8 -8 -6 -6 -6 -5 -4 -4 -4 -4 -4 -4 -3 -3 -3 -2 -2 -1 ------- Run | Yrd Mat Min Mat Min Exi Min Mat Sto Rec Fac Ext Cet Fac Fac Was Fac Upp Upp War Pro Res Qua Res Tes Acc Combat Hostiles Destroyed 152 | . 8 4 21 5 . 13 11 26 1 . 8 . 10 1 . 1 3 6 5 . 2 8 . 4 15 Melee 24 | . . . . . . . . . . . 4 . 6 1 . . 2 . . . . 8 . . 3 Guns 56 | . 8 4 15 . . 11 8 9 1 . . . . . . . . . . . . . . . . Cannons 15 | . . . 2 1 . . . 7 . . . . . . . . 1 1 2 . 1 . . . . AOE 53 | . . . 4 4 . 2 3 9 . . 4 . 4 . . 1 . 4 2 . 1 . . 4 11 Classes Destroyed 18 | 2 5 1 3 1 . . 1 . . . 2 . 1 . . . 1 . 1 . . . . . . Worker 21 | . . 1 3 . . . . 4 . . 5 . 3 . . . . . . . 2 . . . 3 Builder 19 | . 2 . 3 . . 1 . 1 . . 3 . 3 . . . . . . . 1 . . 1 4 Tunneler 16 | 4 . . 1 3 . 3 1 . . . 3 . . . . . . . . . . . . . 1 Hauler 26 | . 2 . 4 . . . 1 6 . 2 2 . 2 . . 2 . . . . 4 . . . 1 Recycler 17 | 1 . 2 1 . . . 1 . 4 . 3 . 1 . . . . . . . . . . . 4 Mechanic 6 | . 1 . 1 1 . . 1 1 . . . . . . . . . . . . 1 . . . . Operator 9 | . 2 . . . . . 1 2 . . 1 . 2 . . . . . . . . . 1 . . Watcher 4 | . . . . . . . . . . . 1 1 . 1 . . . . . . 1 . . . . Swarmer 58 | . . . 8 3 . 7 3 7 . . 3 . 4 . . 1 2 4 1 . . . . 4 11 Grunt 42 | . 8 4 5 . . 6 1 13 . . 3 . . . . . . . 1 . 1 . . . . Brawler 3 | . . . 1 1 . . . . . . . . . . . . . 1 . . . . . . . Duelist 2 | . . . . . . . . . . . . . . . . . 1 . 1 . . . . . . Protector 1 | . . . . . . . . . . . . . . . . . . . 1 . . . . . . Sentry 26 | . . . 7 . . . 6 7 1 . 1 . 2 1 . . . . . . . . . . 1 Hunter 3 | . . . . . . . 1 . . . . . . . . . . 1 . . 1 . . . . Programmer 16 | . . . . . . . . . . . . . 4 . . . . . 1 . . 8 . . 3 Behemoth 1 | . . . . . . . . . . . 1 . . . . . . . . . . . . . . Enhanced Grunt 1 | . . . . . . . . . . . . . . . . . . . 1 . . . . . . Decomposer 3 | . . . . . . . . . . . . . . . . . . . . 3 . . . . . Assembled 1 | . . . . 1 . . . . . . . . . . . . . . . . . . . . . Thug 1 | . . . . . . . . . . . . . . . . . . . 1 . . . . . . Best Kill Streak 8 | 4 2 4 5 3 . 4 4 8 1 1 6 1 7 1 . 1 2 4 3 . 6 3 1 5 8 Combat Bots Only 6 | . 2 2 4 3 . 4 4 6 1 . 4 . 4 1 . 1 2 4 3 . 1 3 . 4 5 Max Kills in Single Turn 5 | 1 1 1 2 3 . 2 2 4 1 1 3 1 3 1 . 1 1 2 2 1 2 1 1 2 5 Gunslinging 1 | . . . 1 . . 1 . . . . . . . . . . . . . . . . . . . Exploded 4 | . . . 2 3 . 2 2 3 . . 2 . 3 . . 1 . 2 1 . 1 . . 2 4 Melee 1 | . . . . . . . . . . . 1 . 1 1 . . 1 . . . . 1 . . 1 Uniques/NPCs Destroyed 1 | . . . . . . . . . . . . 1 . . . . . . . . . . . . . A7 (-6/Cetus) Combat | -11 -10 -10 -9 -9 -9 -8 -8 -8 -8 -6 -6 -6 -5 -4 -4 -4 -4 -4 -4 -3 -3 -3 -2 -2 -1 -------- Run | Yrd Mat Min Mat Min Exi Min Mat Sto Rec Fac Ext Cet Fac Fac Was Fac Upp Upp War Pro Res Qua Res Tes Acc Hostile Shots Fired 1557 | . 55 35 91 7 . 73 48 132 2 16 72 6 118 16 . 5 19 49 106 4 188 112 14 45 344 Missed 507 | . 16 5 15 3 . 6 13 32 1 7 26 1 38 5 . 2 8 19 49 . 91 35 8 15 112 Hits 1050 | . 39 30 76 4 . 67 35 100 1 9 46 5 80 11 . 3 11 30 57 4 97 77 6 30 232 Melee 14 | . . . 1 2 . . . . . . . . . . . . . . 3 . 8 . . . . Projectile 1036 | . 39 30 75 2 . 67 35 100 1 9 46 5 80 11 . 3 11 30 54 4 89 77 6 30 232 AOE 15 | . . 8 . . . . . . . . . . . . . 1 . . 4 . . . 2 . . Critical Strikes 51 | . 1 . 1 . . 2 2 3 . . 2 4 2 . . . . 1 2 . 8 14 . 2 7 Actively Blocked 2 | . . . . . . . . . . . . . 1 . . . . . . . . . . 1 . Part Disruptions 3 | . . . . . . . . . . . . . . . . . . . . . . 1 . . 2 Damage Taken 21706 | . 568 599 1048 113 . 1076 563 1585 12 147 551 166 1905 187 . 131 187 524 1649 109 2210 1616 364 737 5659 Core 3574 | . 82 71 43 . . 100 61 88 . 56 121 29 426 37 . 39 15 124 138 . 233 282 26 . 1603 Absorbed by Shields 449 | . . . . . . . . . . . 117 61 . 67 . . . . 9 . . 195 . . . Redirected to Shielding 339 | . . . . . . . . . . . . . 83 33 . 19 . 7 73 . 22 . . 102 . Ignored by Resistances 3 | . . . . . . . . . 3 . . . . . . . . . . . . . . . . Regen/Repaired (Parts) 1516 | . . . 17 . . . 132 44 5 44 129 . 317 240 63 72 28 102 112 . 142 . 47 22 . Core Remaining (%) 70 | 100 . 38 . . . 64 . . 72 . . 75 57 . . . . . . 69 . 60 . 98 . Volleys Fired 634 | 14 55 22 86 22 . 39 45 105 3 4 32 8 21 3 1 6 13 50 49 1 9 11 . 7 28 Largest 2 | 2 2 2 2 2 . 2 2 2 2 1 1 2 1 1 1 1 1 2 2 1 2 1 . 2 2 Hottest 250 | 40 40 80 91 91 . 143 91 112 56 75 90 115 240 80 105 47 47 152 152 105 153 113 . 250 250 Shots Fired 995 | 28 109 42 165 27 . 74 87 170 6 4 32 10 23 3 1 6 13 62 73 1 11 11 . 8 29 Gun 624 | 28 109 41 136 9 . 67 84 116 6 . . 5 18 3 . . . . . . 2 . . . . Cannon 304 | . . 1 25 14 . 5 1 42 . 4 12 5 3 . 1 4 13 60 70 1 5 11 . 3 24 Launcher 67 | . . . 4 4 . 2 2 12 . . 20 . 2 . . 2 . 2 3 . 4 . . 5 5 Special . | . . . . . . . . . . . . . . . . . . . . . . . . . . Kinetic 571 | 28 109 41 104 9 . 43 44 90 6 . . 8 . . . 4 13 16 45 . 2 9 . . . Thermal 357 | . . 1 57 14 . 29 41 68 . 4 12 2 21 3 1 . . 44 25 1 5 2 . 3 24 Explosive 63 | . . . 4 4 . 2 2 12 . . 20 . 2 . . 2 . 2 . . 4 . . 5 4 Electromagnetic 4 | . . . . . . . . . . . . . . . . . . . 3 . . . . . 1 Robot Hit Streak 24 | 13 17 24 10 14 . 11 8 16 3 . 8 2 4 . 5 6 5 5 7 . 4 . . 2 3 Robot Miss Streak 9 | 1 2 2 4 . . 6 4 3 1 . 1 2 . . . 2 3 2 9 . 2 . . 2 4 Penetration Max 1 | . . . . . . . 1 1 . . . 1 . . . . . . 1 . . . . . . Secondary Targets 6 | . . . 2 . . 4 . . . . . . . . . . . . . . . . . . . Max Gunslinging Chain 1 | . . . 1 . . 1 . . . . . . . . . . . . . . . . . . . Shots Hit Robots 782 | 22 79 31 111 12 . 46 55 112 4 11 40 18 46 14 9 10 10 17 35 3 26 28 1 2 40 Core Hits 472 | 8 36 15 51 14 . 27 25 63 4 4 48 6 20 3 2 5 5 8 41 3 19 13 1 10 41 Critical Kills 5 | . . . . . . . 1 2 . . . . . . . . . 1 . . . . . . 1 Critical Parts Destroyed 3 | 1 . . . . . . . 2 . . . . . . . . . . . . . . . . . Critical Strikes 47 | 1 . . 1 . . 3 2 9 . 3 5 2 5 1 . 1 . 1 3 . 3 . 1 . 6 Burn 10 | . . . 1 . . 3 1 5 . . . . . . . . . . . . . . . . . Meltdown 3 | . . . . . . . . 1 . . . . . . . . . 1 . . . . . . 1 Destroy 6 | 1 . . . . . . 1 3 . . . 1 . . . . . . . . . . . . . Blast 3 | . . . . . . . . . . . . . . . . . . . 3 . . . . . . Sever 19 | . . . . . . . . . . 3 5 1 5 1 . 1 . . . . 3 . . . . Impale 6 | . . . . . . . . . . . . . . . . . . . . . . . 1 . 5 Melee Attacks 360 | . . . 1 . . . . . . 30 33 14 86 20 8 7 3 . 1 4 37 59 3 12 42 Impact 1 | . . . 1 . . . . . . . . . . . . . . . . . . . . . . Slashing 231 | . . . . . . . . . . 30 33 14 86 20 8 7 3 . . 4 26 . . . . Piercing 119 | . . . . . . . . . . . . . . . . . . . . . 9 59 3 12 36 Entropic 9 | . . . . . . . . . . . . . . . . . . . 1 . 2 . . . 6 Sneak Attacks 52 | . . . . . . . . . . 2 5 13 8 1 . 2 1 . . 3 6 . . . 11 Combat Hostiles 4 | . . . . . . . . . . . . . 1 . . . 1 . . . . . . . 2 Follow-up Attacks 10 | . . . . . . . . . . . . . . . . . . . . . . 4 . . 6 Damage Inflicted 31295 | 225 845 356 1998 600 . 978 1159 3624 138 446 3069 984 3012 686 351 592 335 844 2228 270 2104 1230 55 605 4561 Guns 6234 | 225 820 316 1275 109 . 704 970 1568 82 . . 91 59 . . . . . . . 15 . . . . Cannons 4570 | . . 18 354 142 . 84 . 764 . . 283 52 . . 34 99 164 631 1215 . 78 . . 160 492 Explosions 9016 | . . . 322 338 . 190 187 1267 . . 1468 . 725 . . 136 . 213 1013 . 744 . . 445 1968 Melee 11258 | . . . . . . . . . . 446 1318 841 2228 686 317 357 171 . . 270 1257 1230 55 . 2082 Ramming 217 | . 25 22 47 11 . . 2 25 56 . . . . . . . . . . . 10 . . . 19 Kinetic 6109 | 225 820 316 865 109 . 347 529 1302 82 . . 81 . . . 99 164 340 815 . 15 . . . . Thermal 5181 | . . 18 764 142 . 441 441 1030 . . 283 62 59 . 34 . . 291 817 . 78 . . 160 561 Explosive 7752 | . . . 322 338 . 190 187 1267 . . 1468 . 725 . . 136 . 213 . . 744 . . 445 1717 Electromagnetic 778 | . . . . . . . . . . . . . . . . . . . 596 . . . . . 182 Impact . | . . . . . . . . . . . . . . . . . . . . . . . . . . Slashing 7646 | . . . . . . . . . . 446 1318 841 2228 686 317 357 171 . . 270 1012 . . . . Piercing 3274 | . . . . . . . . . . . . . . . . . . . . . 245 1230 55 . 1744 Entropic 338 | . . . . . . . . . . . . . . . . . . . . . . . . . 338 Highest Corruption 22 | . . . . . . . . . . 1 1 3 10 . . . . . 2 2 . 20 . 2 22 Average Corruption 3 | . . . . . . . . . . 1 1 2 4 . . . . . 1 2 . 11 . 1 7 Corruption Purged . | . . . . . . . . . . . . . . . . . . . . . . . . . . Corruption Blocked . | . . . . . . . . . . . . . . . . . . . . . . . . . . Effects 126 | . . . . . . . . . . 3 12 13 45 . . . . . 1 7 . 17 . . 28 Message Errors 19 | . . . . . . . . . . 1 . 1 7 . . . . . 1 . . 4 . . 5 Matter Fused 33 | . . . . . . . . . . 1 7 3 11 . . . . . . 3 . 2 . . 6 Heat Flow Errors 20 | . . . . . . . . . . . 1 5 9 . . . . . . . . 1 . . 4 Energy Discharges 19 | . . . . . . . . . . 1 1 . 7 . . . . . . 2 . 3 . . 5 Parts Rejected 1 | . . . . . . . . . . . . . . . . . . . . . . . . . 1 Parts Fused 3 | . . . . . . . . . . . . . 2 . . . . . . . . 1 . . . Data Loss (minor) 14 | . . . . . . . . . . . . 2 4 . . . . . . 2 . 4 . . 2 Data Loss (major) 2 | . . . . . . . . . . . . 1 1 . . . . . . . . . . . . Misfires 5 | . . . . . . . . . . . 1 1 2 . . . . . . . . 1 . . . Alerts 3 | . . . . . . . . . . . 1 . 1 . . . . . . . . . . . 1 Misdirections 5 | . . . . . . . . . . . . . 1 . . . . . . . . . . . 4 Weapon Failures 2 | . . . . . . . . . . . 1 . . . . . . . . . . 1 . . . Overload Shots 2 | . . . . . . . . . . . . . 2 . . . . . . . . . . . . Overflow Damage 1723 | . . . 36 11 . 11 . 35 . 1 138 48 384 72 . 7 13 8 75 . 87 8 . 114 675 Projectiles 190 | . . . 11 11 . . . . . . . . . . . . 13 8 . . . . . 47 100 Explosions 597 | . . . 25 . . 11 . 35 . . 35 . 54 . . 7 . . 75 . 20 . . 67 268 Melee 936 | . . . . . . . . . . 1 103 48 330 72 . . . . . . 67 8 . . 307 Knockbacks 10 | . . . . . . . . 4 1 . . . . . . . 1 2 2 . . . . . . Impact 1 | . . . . . . . . . 1 . . . . . . . . . . . . . . . . Kinetic 9 | . . . . . . . . 4 . . . . . . . . 1 2 2 . . . . . . Secondary . | . . . . . . . . . . . . . . . . . . . . . . . . . . Self-Inflicted Damage 658 | . . . 25 35 . 94 69 151 . . 52 . 59 . . 6 . . 28 . 17 . . 92 30 Shots 18 | . . . 1 1 . 2 2 3 . . 1 . 2 . . 1 . . 2 . 1 . . 1 1 Rammed 32 | . 6 3 9 1 . . 1 3 4 . . . . . . . . . . . 3 . . . 2 Targets Rammed 37 | . 7 3 9 2 . . 1 4 6 . . . . . . . . . . . 3 . . . 2 Kicked . | . . . . . . . . . . . . . . . . . . . . . . . . . . Crushed 5 | . 1 . . 1 . . . 1 2 . . . . . . . . . . . . . . . . Highest Temperature 504 | . 25 30 204 314 . 504 126 390 . 160 160 169 285 160 108 99 312 79 325 68 387 131 406 132 390 Average Temperature 86 | . 8 13 72 138 . 196 39 117 . 31 52 53 89 33 44 38 141 30 50 33 141 59 158 53 88 Received Heat Transfer 3187 | . 327 165 339 9 . 513 117 675 . 18 168 . 108 36 . 9 9 57 189 18 268 . . . 162 Effects 34 | . . . . 1 . 9 . 2 . . . . 1 . . . 3 . . . 4 . 8 . 6 Shutdowns 9 | . . . . . . 5 . . . . . . . . . . . . . . . . 2 . 2 Energy Bleed 9 | . . . . . . 3 . 1 . . . . 1 . . . . . . . 1 . 3 . . Interference 11 | . . . . . . . . . . . . . . . . . 3 . . . 2 . 2 . 4 Matter Decay 2 | . . . . 1 . . . . . . . . . . . . . . . . 1 . . . . Short Circuit 1 | . . . . . . 1 . . . . . . . . . . . . . . . . . . . Damage (minor) 2 | . . . . . . . . 1 . . . . . . . . . . . . . . 1 . . Siege Activations . | . . . . . . . . . . . . . . . . . . . . . . . . . . Martial Activations . | . . . . . . . . . . . . . . . . . . . . . . . . . . Shielding Activations . | . . . . . . . . . . . . . . . . . . . . . . . . . . Robots Disrupted . | . . . . . . . . . . . . . . . . . . . . . . . . . . Combat Hostiles . | . . . . . . . . . . . . . . . . . . . . . . . . . . Robots Corrupted 1 | . . . . . . . . . . . . . . . . . . . 1 . . . . . . Combat Hostiles 1 | . . . . . . . . . . . . . . . . . . . 1 . . . . . . Parts Fried 3 | . . . . . . . . . . . . 1 . . . . . . 2 . . . . . . Impact Corruptions . | . . . . . . . . . . . . . . . . . . . . . . . . . . Robots Melted 3 | . . . . . . . . 1 . . . . . . . . . 1 . . . . . . 1 Combat Hostiles 3 | . . . . . . . . 1 . . . . . . . . . 1 . . . . . . 1 Parts Melted 10 | . . . 1 . . . 2 4 . . . . . . . . . 1 . . . . . . 2 Heat Transferred 8386 | . . 37 1702 259 . 999 1036 2109 . . 435 56 74 . 37 . . 296 715 . 74 . . 87 470 Parts Sabotaged 4 | . . . . . . . . . . . . . . . . . . . 4 . . . . . . Parts Stolen . | . . . . . . . . . . . . . . . . . . . . . . . . . . Parts Stripped . | . . . . . . . . . . . . . . . . . . . . . . . . . . Power Chain Reactions 4 | . . . . . . . . . . . . . . . . . . . 3 . . . . . 1 Alert | -11 -10 -10 -9 -9 -9 -8 -8 -8 -8 -6 -6 -6 -5 -4 -4 -4 -4 -4 -4 -3 -3 -3 -2 -2 -1 ------- Run | Yrd Mat Min Mat Min Exi Min Mat Sto Rec Fac Ext Cet Fac Fac Was Fac Upp Upp War Pro Res Qua Res Tes Acc Maximum Alert Level 3 | . . . 1 . . . . 2 . . 2 2 3 1 . 1 . . . . 1 . . 1 2 Low Security (%) 58 | 100 100 100 61 100 . 100 100 12 100 100 58 . . 40 100 39 . . . . 56 100 100 84 10 Level 1 17 | . . . 38 . . . . 30 . . 19 69 1 59 . 60 . . . . 43 . . 15 23 Level 2 20 | . . . . . . . . 56 . . 21 30 75 . . . . . . . . . . . 66 Level 3 2 | . . . . . . . . . . . . . 23 . . . . . . . . . . . . Level 4 . | . . . . . . . . . . . . . . . . . . . . . . . . . . Level 5 . | . . . . . . . . . . . . . . . . . . . . . . . . . . High Security . | . . . . . . . . . . . . . . . . . . . . . . . . . . Max Security . | . . . . . . . . . . . . . . . . . . . . . . . . . . Peak Influence 739 | 5 81 50 270 187 . 150 128 531 187 114 604 562 739 340 68 378 . . . . 311 109 150 291 509 Initial 340 | . . 18 1 102 . . . 48 187 100 55 316 294 340 68 . . . . . . 72 15 54 140 Average 209 | 1 16 8 121 94 . 62 67 375 55 48 216 359 602 233 19 221 . . . . 171 49 40 59 405 Influence Increases 12046 | 25 301 115 833 268 . 364 427 1378 101 361 1092 626 1421 88 . 645 517 408 277 . 671 415 260 427 1026 Destroy 0b10 Robot/C 4520 | . 160 80 420 140 . 260 220 700 20 . 500 280 360 20 . 140 280 220 140 . 40 160 . 80 300 Destroy 0b10 Robot/NC 650 | 25 35 15 65 20 . 20 25 75 20 10 105 10 80 10 . 10 . . 5 . 45 . 5 5 65 Destroy Leader 894 | . 44 20 128 20 . 40 82 194 . 4 56 20 108 12 . 34 20 30 . . 10 20 . . 52 Allied During Kill 1463 | . . . . 5 . . . 129 . . 237 310 224 . . 171 217 158 12 . . . . . . Successful Hack 453 | . . . 14 . . . 17 14 . 65 45 . 104 8 . . . . . . 18 21 . 21 126 Select Force Hacks 120 | . . . . . . . . 30 60 30 . . . . . . . . . . . . . . . Disable Machine 765 | . . . . . . 30 45 90 . . 15 . 150 . . 120 . . . . 60 60 15 105 75 Anti-Garrison Action 150 | . . . . . . . . . . . . . . . . . . . . . . . 150 . . Destroy Structure 1191 | . 2 . 26 38 . 14 23 86 1 17 44 6 290 8 . 170 . . . . 48 34 . 216 168 Advance Influence 100 | . . . . . . . . . . 100 . . . . . . . . . . . . . . . Partial Spotted 300 | . . . 15 . . . . . . 15 90 . 75 . . . . . . . . 15 15 . 75 Lose Combat Pursuer 1440 | . 60 . 165 45 . . 15 60 . 120 . . 30 30 . . . . 120 . 450 105 75 . 165 Influence Decreases 11698 | 25 253 158 574 466 66 364 311 1012 583 248 639 666 1250 589 196 304 353 569 571 50 543 515 191 289 913 Entered New Map 2475 | . . 30 4 162 66 . . 68 295 . 58 250 232 357 128 . 127 97 344 50 . 56 13 43 95 Time Decay 7196 | 25 253 128 520 302 . 314 311 614 288 244 471 386 648 222 68 100 206 362 108 . 423 371 178 196 458 Lost Part 1027 | . . . 50 . . 50 . 50 . . 10 10 150 10 . . . 20 69 . 120 88 . 40 360 Lost Ally 996 | . . . . 2 . . . 280 . . 100 20 220 . . 204 20 90 50 . . . . 10 . Purge Threat 4 | . . . . . . . . . . 4 . . . . . . . . . . . . . . . Squads Dispatched 62 | . 1 . 1 1 . . 1 9 . 6 1 . 11 3 . 1 . . . . 14 5 . 1 7 Investigation 17 | . . . . . . . . 1 . 3 . . 5 1 . . . . . . 5 1 . . 1 Extermination 12 | . . . . . . . . . . 2 . . 2 . . 1 . . . . . 2 . 1 4 Reinforcement 25 | . 1 . 1 . . . 1 5 . 1 1 . 4 1 . . . . . . 6 2 . . 2 Assault 1 | . . . . 1 . . . . . . . . . . . . . . . . . . . . . Garrison 7 | . . . . . . . . 3 . . . . . 1 . . . . . . 3 . . . . Intercept . | . . . . . . . . . . . . . . . . . . . . . . . . . . Searches Triggered . | . . . . . . . . . . . . . . . . . . . . . . . . . . Construction Impeded 8 | . . . 1 . . . . 2 . . 1 . 2 . . . . . . . 1 . . . 1 Haulers Reinforced 2 | . . . . . . . . . . . . . . . . . . . . . 2 . . . . Active Scanning Responses . | . . . . . . . . . . . . . . . . . . . . . . . . . . Cargo Convoy Interrupts 1 | . . . . . . . . . . . . . 1 . . . . . . . . . . . . Stealth | -11 -10 -10 -9 -9 -9 -8 -8 -8 -8 -6 -6 -6 -5 -4 -4 -4 -4 -4 -4 -3 -3 -3 -2 -2 -1 --------- Run | Yrd Mat Min Mat Min Exi Min Mat Sto Rec Fac Ext Cet Fac Fac Was Fac Upp Upp War Pro Res Qua Res Tes Acc Distress Signals 54 | . 2 . 8 . . . 2 11 . 1 . 2 1 . . . . . 1 . 10 1 12 . 3 Communications Jammed 1 | . . . . . . . . . . . 1 . . . . . . . . . . . . . . Distress Signals 1 | . . . . . . . . . . . 1 . . . . . . . . . . . . . . Times Spotted 546 | . 23 6 49 11 . 13 18 50 1 13 28 12 35 4 . 5 12 12 121 1 39 20 9 13 51 Peak Tracking Total 20 | . 3 2 6 4 . 6 4 6 . 6 4 5 8 4 . 3 7 4 20 1 16 5 6 6 10 Tactical Retreats 57 | . 4 . 11 3 . . 1 4 . 3 1 . 1 1 . . . . 4 . 9 3 5 . 7 ECM-based Alert Blocks 3 | . . . . . . . . . . . 3 . . . . . . . . . . . . . . Traps | -11 -10 -10 -9 -9 -9 -8 -8 -8 -8 -6 -6 -6 -5 -4 -4 -4 -4 -4 -4 -3 -3 -3 -2 -2 -1 ------- Run | Yrd Mat Min Mat Min Exi Min Mat Sto Rec Fac Ext Cet Fac Fac Was Fac Upp Upp War Pro Res Qua Res Tes Acc Traps Triggered 18 | . 2 . 2 . . . . . . . 4 . 3 2 . . . . . . 2 . . . 3 Indirectly . | . . . . . . . . . . . . . . . . . . . . . . . . . . Trap Hack Attempts . | . . . . . . . . . . . . . . . . . . . . . . . . . . Triggered . | . . . . . . . . . . . . . . . . . . . . . . . . . . Disarmed . | . . . . . . . . . . . . . . . . . . . . . . . . . . Reprogrammed . | . . . . . . . . . . . . . . . . . . . . . . . . . . Reused . | . . . . . . . . . . . . . . . . . . . . . . . . . . Traps Extracted . | . . . . . . . . . . . . . . . . . . . . . . . . . . Installed . | . . . . . . . . . . . . . . . . . . . . . . . . . . Triggered . | . . . . . . . . . . . . . . . . . . . . . . . . . . Machines | -11 -10 -10 -9 -9 -9 -8 -8 -8 -8 -6 -6 -6 -5 -4 -4 -4 -4 -4 -4 -3 -3 -3 -2 -2 -1 ---------- Run | Yrd Mat Min Mat Min Exi Min Mat Sto Rec Fac Ext Cet Fac Fac Was Fac Upp Upp War Pro Res Qua Res Tes Acc Machines Disabled 55 | . . . . . . 2 3 6 . . 1 . 10 . . 8 1 . 2 . 4 4 2 7 5 Max in Single Turn 2 | . . . . . . 1 1 2 . . . . 1 . . 1 . . 1 . 1 1 1 1 2 Garrison Access 7 | . . . . . . . . . . . . . 2 2 . . . . . . 2 . 1 . . Machines Repaired . | . . . . . . . . . . . . . . . . . . . . . . . . . . Machines Dismantled . | . . . . . . . . . . . . . . . . . . . . . . . . . . Machines Sabotaged . | . . . . . . . . . . . . . . . . . . . . . . . . . . Overloaded Fab Kills . | . . . . . . . . . . . . . . . . . . . . . . . . . . Hacking | -11 -10 -10 -9 -9 -9 -8 -8 -8 -8 -6 -6 -6 -5 -4 -4 -4 -4 -4 -4 -3 -3 -3 -2 -2 -1 --------- Run | Yrd Mat Min Mat Min Exi Min Mat Sto Rec Fac Ext Cet Fac Fac Was Fac Upp Upp War Pro Res Qua Res Tes Acc Machines Accessed 101 | . 2 . 9 . 1 . 3 5 7 12 15 1 12 5 . 2 1 1 1 . 4 6 2 2 10 Terminals 56 | . 1 . 6 . . . 2 4 4 6 12 1 6 . . . . . . . 2 5 . 1 6 Fabricators 2 | . . . . . . . . . . 1 . . 1 . . . . . . . . . . . . Repair Stations 12 | . . . 1 . . . 1 . . 1 1 . 2 2 . 1 . . . . 1 . 1 1 . Recycling Units 9 | . 1 . 1 . . . . 1 3 1 2 . . . . . . . . . . . . . . Scanalyzers 10 | . . . 1 . . . . . . 3 . . 1 1 . 1 . . . . . 1 . . 2 Garrison Access 8 | . . . . . . . . . . . . . 2 2 . . . . . . 1 . 1 . 2 Total Hacks 233 | . 3 . 16 . 1 . 11 8 20 30 32 1 28 11 . 3 1 1 1 . 10 20 5 6 25 Successful 119 | . 2 . 9 . 1 . 4 6 5 17 20 . 13 9 . 3 1 1 1 . 7 9 . 3 8 Failed 112 | . 1 . 7 . . . 7 2 15 13 12 1 15 2 . . . . . . 3 10 5 3 16 Catastrophic 14 | . . . 1 . . . 3 . . . 1 . 2 . . . . . . . . 1 2 . 4 Database Lockouts 2 | . . . . . . . . . . . . . . . . . . . . . . 1 . . 1 Manual 57 | . . . 1 . . . 5 3 10 9 10 1 8 . . . . . . . . 5 . 2 3 Terminals 134 | . 2 . 10 . . . 8 7 14 15 25 1 15 . . . . . . . 5 14 . 3 15 Fabricators 6 | . . . . . . . . . . 2 . . 4 . . . . . . . . . . . . Repair Stations 34 | . . . 3 . . . 3 . . 4 2 . 5 7 . 2 . . . . 3 . 2 3 . Recycling Units 16 | . 1 . 2 . . . . 1 6 1 5 . . . . . . . . . . . . . . Scanalyzers 25 | . . . 1 . . . . . . 8 . . 1 2 . 1 . . . . . 6 . . 6 Garrison Access 14 | . . . . . . . . . . . . . 3 2 . . . . . . 2 . 3 . 4 Terminal Hacks 54 | . 1 . 4 . 1 . 1 5 2 5 11 . 3 . . . 1 1 1 . 4 7 . 1 6 Record 7 | . . . . . 1 . . . . . . . 1 . . . . . . . 1 3 . . 1 Robot Analysis 2 | . . . . . . . . . 1 . . . 1 . . . . . . . . . . . . Open Door 14 | . . . . . . . . 2 . . 9 . . . . . 1 1 1 . . . . . . Branch Access Points 4 | . . . . . . . . . . 1 . . . . . . . . . . 1 1 . . 1 Emergency Access Points 5 | . 1 . . . . . . . 1 . . . . . . . . . . . 1 1 . . 1 Machine Index 1 | . . . . . . . . . . . . . . . . . . . . . . . . . 1 Terminal Index 7 | . . . . . . . . 1 . 1 1 . . . . . . . . . 1 1 . 1 1 Fabricator Index 1 | . . . . . . . . . . . . . 1 . . . . . . . . . . . . Scanalyzer Index 1 | . . . . . . . . . . 1 . . . . . . . . . . . . . . . Unreport Threat 1 | . . . . . . . . . . 1 . . . . . . . . . . . . . . . Locate Traps 3 | . . . . . . . . 1 . . . . . . . . . . . . . 1 . . 1 Hauler Manifests 2 | . . . 1 . . . . 1 . . . . . . . . . . . . . . . . . Registered Components 1 | . . . 1 . . . . . . . . . . . . . . . . . . . . . . Zone Layout 5 | . . . 2 . . . 1 . . 1 1 . . . . . . . . . . . . . . Fabricator Hacks 3 | . . . . . . . . . . 1 . . 2 . . . . . . . . . . . . Network Status 1 | . . . . . . . . . . 1 . . . . . . . . . . . . . . . Load Schematic 1 | . . . . . . . . . . . . . 1 . . . . . . . . . . . . Build 1 | . . . . . . . . . . . . . 1 . . . . . . . . . . . . Repair Station Hacks 22 | . . . 2 . . . 2 . . 2 2 . 4 5 . 2 . . . . 2 . . 1 . Scan Component 12 | . . . 1 . . . 1 . . 1 1 . 2 3 . 1 . . . . 1 . . 1 . Repair 10 | . . . 1 . . . 1 . . 1 1 . 2 2 . 1 . . . . 1 . . . . Recycling Unit Hacks 4 | . 1 . 1 . . . . . . . 2 . . . . . . . . . . . . . . Retrieve Components 4 | . 1 . 1 . . . . . . . 2 . . . . . . . . . . . . . . Scanalyzer 14 | . . . 1 . . . . . . 6 . . 1 2 . 1 . . . . . 2 . . 1 Insert Component 3 | . . . . . . . . . . 3 . . . . . . . . . . . . . . . Analyze 2 | . . . . . . . . . . 2 . . . . . . . . . . . . . . . Retrieve Study 9 | . . . 1 . . . . . . 1 . . 1 2 . 1 . . . . . 2 . . 1 Garrison Access Hacks 5 | . . . . . . . . . . . . . 2 2 . . . . . . 1 . . . . Seal Access 5 | . . . . . . . . . . . . . 2 2 . . . . . . 1 . . . . Unauthorized Hacks 17 | . . . 1 . . . 1 1 3 3 5 . 1 . . . . . . . . . . 1 1 Terminals 11 | . . . 1 . . . 1 . 1 2 3 . 1 . . . . . . . . . . 1 1 Assimilate 1 | . . . . . . . . . . . . . . . . . . . . . . . . 1 . Botnet 10 | . . . 1 . . . 1 . 1 2 3 . 1 . . . . . . . . . . . 1 Fabricators . | . . . . . . . . . . . . . . . . . . . . . . . . . . Repair Stations . | . . . . . . . . . . . . . . . . . . . . . . . . . . Recycling Units 6 | . . . . . . . . 1 2 1 2 . . . . . . . . . . . . . . Mask 2 | . . . . . . . . . . . 2 . . . . . . . . . . . . . . Tunnel 4 | . . . . . . . . 1 2 1 . . . . . . . . . . . . . . . Scanalyzers . | . . . . . . . . . . . . . . . . . . . . . . . . . . Garrison Access . | . . . . . . . . . . . . . . . . . . . . . . . . . . Data Cores Recovered 3 | . 1 . . . . . . . . . 1 . 1 . . . . . . . . . . . . Used 1 | . . . . . . . . . . . . . 1 . . . . . . . . . . . . Hacking Detections 71 | . 1 . 5 . . . 2 2 5 10 10 1 10 3 . 2 . . . . 3 4 2 2 9 Full Trace Events 9 | . . . . . . . 1 . . 2 . . 4 1 . . . . . . . . . . 1 Feedback Events 3 | . . . . . . . . . . 1 . . 1 1 . . . . . . . . . . . Corruption 1 | . . . . . . . . . . 1 . . . . . . . . . . . . . . . Hackware Fried 2 | . . . . . . . . . . . . . 1 1 . . . . . . . . . . . Feedback Blocked . | . . . . . . . . . . . . . . . . . . . . . . . . . . Robot Schematics Acquired . | . . . . . . . . . . . . . . . . . . . . . . . . . . Robots Built . | . . . . . . . . . . . . . . . . . . . . . . . . . . Authchips . | . . . . . . . . . . . . . . . . . . . . . . . . . . Time . | . . . . . . . . . . . . . . . . . . . . . . . . . . Total Robot Build Rating . | . . . . . . . . . . . . . . . . . . . . . . . . . . Part Schematics Acquired 2 | . . . . . . . . . . 2 . . . . . . . . . . . . . . . Parts Built 1 | . . . . . . . . . . . . . 1 . . . . . . . . . . . . Authchips . | . . . . . . . . . . . . . . . . . . . . . . . . . . Time 102 | . . . . . . . . . . . . . 102 . . . . . . . . . . . . Total Part Build Rating 8 | . . . . . . . . . . . . . 8 . . . . . . . . . . . . Part Studies Acquired 9 | . . . 1 . . . . . . 1 . . 1 2 . 1 . . . . . 2 . . 1 Parts Repaired 9 | . . . 1 . . . 1 . . 1 . . 2 2 . 1 . . . . 1 . . . . Time 470 | . . . 26 . . . 32 . . 68 108 . 73 88 . 38 . . . . 37 . . . . Parts Recycled . | . . . . . . . . . . . . . . . . . . . . . . . . . . Recycled Matter . | . . . . . . . . . . . . . . . . . . . . . . . . . . Retrieved Matter . | . . . . . . . . . . . . . . . . . . . . . . . . . . Retrieved Components 28 | . 9 . . . . . . . . . 19 . . . . . . . . . . . . . . Parts Scanalyzed 2 | . . . . . . . . . . 2 . . . . . . . . . . . . . . . Part Schematics Acquired 2 | . . . . . . . . . . 2 . . . . . . . . . . . . . . . Parts Damaged 1 | . . . . . . . . . . 1 . . . . . . . . . . . . . . . Bothacking | -11 -10 -10 -9 -9 -9 -8 -8 -8 -8 -6 -6 -6 -5 -4 -4 -4 -4 -4 -4 -3 -3 -3 -2 -2 -1 ------------ Run | Yrd Mat Min Mat Min Exi Min Mat Sto Rec Fac Ext Cet Fac Fac Was Fac Upp Upp War Pro Res Qua Res Tes Acc Used RIF Installer . | . . . . . . . . . . . . . . . . . . . . . . . . . . Robots Hacked . | . . . . . . . . . . . . . . . . . . . . . . . . . . Non-combat . | . . . . . . . . . . . . . . . . . . . . . . . . . . Combat . | . . . . . . . . . . . . . . . . . . . . . . . . . . Robot Hacks Applied . | . . . . . . . . . . . . . . . . . . . . . . . . . . Relay Couplers Released 3 | . . . . . . . . . . . . . . . . . . . . . 2 . 1 . . Machine Destruction 3 | . . . . . . . . . . . . . . . . . . . . . 2 . 1 . . Fabnet Peak Effective % . | . . . . . . . . . . . . . . . . . . . . . . . . . . Robots Rewired 8 | . . . . . . . . . . . 6 . . . . . 2 . . . . . . . . Allies Hacked . | . . . . . . . . . . . . . . . . . . . . . . . . . . Hacks Repelled . | . . . . . . . . . . . . . . . . . . . . . . . . . . Allies | -11 -10 -10 -9 -9 -9 -8 -8 -8 -8 -6 -6 -6 -5 -4 -4 -4 -4 -4 -4 -3 -3 -3 -2 -2 -1 -------- Run | Yrd Mat Min Mat Min Exi Min Mat Sto Rec Fac Ext Cet Fac Fac Was Fac Upp Upp War Pro Res Qua Res Tes Acc Total Allies 61 | . . 2 . 2 . . . 10 . . 19 5 . . 20 . 2 . . . . . . 1 . Largest Group 20 | . . 2 . 1 . . . 10 . . 11 16 14 . 20 20 10 9 3 . . . . 1 . Highest-Rated Group 930 | . . 50 . 31 . . . 173 . . 470 930 675 . 776 776 417 367 105 . . . . 45 . Highest-Rated Ally 159 | . . 31 . 31 . . . 29 . . 159 159 96 . 50 50 50 50 49 . . . . 45 . Total Orders 1 | . . . . . . . . 1 . . . . . . . . . . . . . . . . . EXPLORE 1 | . . . . . . . . 1 . . . . . . . . . . . . . . . . . Ally Attacks 465 | . . 9 . 22 . . . 75 . . 89 81 64 . . 26 31 57 11 . . . . . . Total Damage 11704 | . . 77 . 244 . . . 928 . . 2405 1806 1807 . . 780 1563 1690 404 . . . . . . Kills 91 | . . . . 3 . . . 10 . . 23 15 14 . . 6 11 6 3 . . . . . . Allies Corrupted 3 | . . . . . . . . 1 . . . . . . . 1 . . 1 . . . . . . Allies Melted 1 | . . . . . . . . . . . . . . . . . . . . . . . 1 . . Intel | -11 -10 -10 -9 -9 -9 -8 -8 -8 -8 -6 -6 -6 -5 -4 -4 -4 -4 -4 -4 -3 -3 -3 -2 -2 -1 ------- Run | Yrd Mat Min Mat Min Exi Min Mat Sto Rec Fac Ext Cet Fac Fac Was Fac Upp Upp War Pro Res Qua Res Tes Acc Active Infowar (turns) 22293 | 23 1319 678 1822 671 290 441 906 1901 870 619 1781 137 2364 469 268 289 424 831 1196 286 1257 903 1120 466 962 Optics 5924 | . . . . . . . . . 4 611 . . . 269 268 289 408 831 1196 286 1246 516 . . . Sensors 10168 | . . . . . . . . 1 7 491 1579 . 1949 409 268 289 424 831 465 284 215 903 1120 466 467 Terrain 522 | . . . . . . . . . . . . . . . . . . . . . . . . . 522 Structural 3464 | . . . . . . . 573 1900 863 128 . . . . . . . . . . . . . . . Seismic 6459 | 23 1319 678 1822 671 290 441 906 144 . . . . . . . . . . . . . . . . 165 Machine Analysis 5332 | . . . . . . . . . . . . 110 2364 469 268 269 . . . . 953 . . . 899 Triangulation 679 | . . . . . . . . . . . . 137 542 . . . . . . . . . . . . Jamming 763 | . . . . . . . . . . 6 756 . . . . . . . . . 1 . . . . ECM 59 | . . . . . . . . . . . 29 . 30 . . . . . . . . . . . . Robot Analysis Total 2 | . . . . . . . . . 1 . . . 1 . . . . . . . . . . . . Derelict Logs Recovered 5 | . . 1 . 2 . . . . . . . . . . . . 1 1 . . . . . . . Drone Launches 16 | . . . . . . . . 16 . . . . . . . . . . . . . . . . . Drone Recoveries 2 | . . . . . . . . 2 . . . . . . . . . . . . . . . . . Exploration | -11 -10 -10 -9 -9 -9 -8 -8 -8 -8 -6 -6 -6 -5 -4 -4 -4 -4 -4 -4 -3 -3 -3 -2 -2 -1 ------------- Run | Yrd Mat Min Mat Min Exi Min Mat Sto Rec Fac Ext Cet Fac Fac Was Fac Upp Upp War Pro Res Qua Res Tes Acc Turns Passed 24219 | 212 1319 678 1848 671 290 726 906 2024 871 619 2029 910 2364 469 268 289 424 831 1196 286 1257 903 1120 552 1157 Spaces Moved 21375 | 104 552 242 791 370 182 319 459 842 517 1066 1903 638 1965 551 265 380 606 840 1777 515 1512 1155 1823 526 1475 Core 50 | 7 . . . . . . . . . . . . 1 . . . . . 1 . . . . . 41 Treads 4294 | 97 552 242 709 370 182 249 146 842 512 . . 391 2 . . . . . . . . . . . . Legs 7 | . . . 7 . . . . . . . . . . . . . . . . . . . . . . Wheels 921 | . . . 75 . . 70 313 . . . . . 463 . . . . . . . . . . . . Hover 12396 | . . . . . . . . . . . . . 1013 551 265 380 606 840 1776 515 1512 1155 1823 526 1434 Flight 3707 | . . . . . . . . . 5 1066 1903 247 486 . . . . . . . . . . . . Fastest Speed 21 | 50 160 240 155 160 160 155 115 160 29 27 27 21 21 44 44 44 44 44 42 51 42 47 39 39 36 Average Speed 74 | 155 177 240 172 160 160 185 137 160 155 28 30 109 58 48 44 44 44 48 48 51 58 51 43 87 50 Slowest Speed 400 | 160 240 240 400 160 160 240 160 240 160 32 104 160 315 110 44 44 44 53 250 51 120 124 110 104 133 Overloaded Moves 68 | . . . . . . . . . . . . . . . . . . . . . 68 . . . . Propulsion Burnouts . | . . . . . . . . . . . . . . . . . . . . . . . . . . Robots Hopped 20 | . . . . . . . . . . 11 9 . . . . . . . . . . . . . . Potential Cave-ins 18 | . . . . . . . . . . 10 . . . . . . . . 2 . . 6 . . . Cave-ins Triggered . | . . . . . . . . . . . . . . . . . . . . . . . . . . Teleports 1 | . . . . . . . . . . . . . . . . . . . . . . . . . 1 Exploration Rate (%) 55 | 4 77 39 69 66 41 56 40 95 88 24 83 65 45 17 90 10 75 69 92 76 39 58 54 42 38 Regions Visited 25 Branch Regions 14 Pre-discovered Areas 8 | . . 1 . 1 1 . . 2 2 1 . . . . . . . . . . . . . . . Known Exits Taken 15 | . . . . . . . 1 . 1 1 1 1 1 . . 1 1 1 1 1 1 1 1 1 . Unknown Exits Taken 8 | 1 1 1 1 1 1 1 . 1 . . . . . . . . . . . . . . . . . Scrap Searched 9 | . . 1 . . . . . . . . . . . . . . 5 1 . 2 . . . . . Spaces Dug 92 | . . . 1 . . . . . . 17 . . 33 3 . . . 4 . 2 7 13 . 4 8 Terrain Destroyed 720 | . . . 22 41 . 27 23 90 . 19 85 3 87 4 . 15 10 67 26 2 23 16 . 96 64 Melee 74 | . . . 1 . . . . . . 17 . . 28 3 . . . . . 1 5 10 . 4 5 Projectile 122 | . . . . . . . . 8 . 2 . 3 11 1 . . 10 41 24 1 3 6 . 1 11 AOE 524 | . . . 21 41 . 27 23 82 . . 85 . 48 . . 15 . 26 2 . 15 . . 91 48 Terrain Rammed . | . . . . . . . . . . . . . . . . . . . . . . . . . . Walls Destroyed . | . . . . . . . . . . . . . . . . . . . . . . . . . . Machines Disabled . | . . . . . . . . . . . . . . . . . . . . . . . . . . Actions | -11 -10 -10 -9 -9 -9 -8 -8 -8 -8 -6 -6 -6 -5 -4 -4 -4 -4 -4 -4 -3 -3 -3 -2 -2 -1 --------- Run | Yrd Mat Min Mat Min Exi Min Mat Sto Rec Fac Ext Cet Fac Fac Was Fac Upp Upp War Pro Res Qua Res Tes Acc Total 28149 | 126 789 298 1124 421 181 381 658 1343 579 1319 3260 814 3017 715 401 483 747 1205 2037 530 1812 1379 2148 591 1791 Wait 4735 | 1 149 23 133 17 . 1 107 318 . 207 1187 126 876 118 110 82 112 306 148 4 178 102 229 12 189 Move 21313 | 103 551 242 790 369 181 318 458 841 516 1045 1884 637 1964 551 264 379 605 839 1776 514 1511 1153 1822 525 1475 Hop 18 | . . . . . . . . . . 9 9 . . . . . . . . . . . . . . Pick Up 179 | 1 15 5 30 2 . 7 16 8 3 7 3 1 5 6 6 2 2 2 6 1 14 17 12 2 6 Fast Attach 181 | 7 2 . 7 . . 2 3 8 6 3 1 9 27 12 . . 1 . 17 . 17 12 23 6 18 Attach 84 | . 2 4 4 . . 4 2 4 6 4 . 3 4 . . . . 1 3 6 8 10 6 6 7 Detach 46 | . . . . . . . . 2 3 3 . 1 5 1 . . 1 . 2 . 11 2 6 7 2 Swap 209 | . 4 . 28 6 . 5 8 26 9 3 13 5 12 2 7 5 2 4 14 . 13 4 13 10 16 Drop 257 | . 4 . 36 3 . 5 18 18 24 4 5 10 17 2 4 2 4 3 21 . 11 17 34 6 9 Fire 634 | 14 55 22 86 22 . 39 45 105 3 4 32 8 21 3 1 6 13 50 49 1 9 11 . 7 28 Melee 340 | . . . 1 . . . . . . 30 33 14 86 20 8 7 3 . 1 4 37 50 3 10 33 Ram 6 | . . . . . . . 1 . . . . . . . . . . . . . 3 . . . 2 Kick . | . . . . . . . . . . . . . . . . . . . . . . . . . . Crush 30 | . 7 2 9 2 . . . 4 6 . . . . . . . . . . . . . . . . Escape Stasis 67 | . . . . . . . . . . . 60 . . . . . . . . . . 1 . . 6 Rewire 43 | . . . . . . . . 2 3 . 33 . . . 1 . 4 . . . . . . . . Trap . | . . . . . . . . . . . . . . . . . . . . . . . . . . Miscellaneous 7 | . . . . . . . . 7 . . . . . . . . . . . . . . . . . Route ------- -11/Scrapyard -10/Materials (discovered 3 exits: *Mat x2 / [*Min]) -10/Mines (discovered 2 exits: *Mat / [*Sub]) -9/Materials (discovered 2 exits: *Mat / [*Min]) -9/Mines (discovered 2 exits: *Mat / *Exi) -9/Exiles -8/Mines (discovered 2 exits: *Mat x2) -8/Materials (discovered 2 exits: *Sto x2) -8/Storage -8/Recycling -6/Factory (discovered 5 exits: *Fac / Low x2 / *Ext x2) -6/Extension (discovered 2 exits: *Fac / *Cet) -6/Cetus (discovered 3 exits: *Fac x2 / [*Arc]) -5/Factory -4/Factory -4/Waste -4/Factory -4/Upper Caves -4/Upper Caves (discovered 2 exits: *Res / *War) -4/Warlord -3/Proximity Caves -3/Research (discovered 3 exits: *Res / *Qua x2) -3/Quarantine -2/Research -2/Testing -1/Access (discovered 1 exit: Com) History --------- Turn | Location | Event 5 | -11/Scrapyard | Discovered new exit (range 16) 213 | -11/Scrapyard | Entered Materials 309 | -10/Materials | Build established: Mutant 514 | -10/Materials | Discovered new exit (range 3) 731 | -10/Materials | Discovered new exit (range 16) 1226 | -10/Materials | Discovered new exit (range 14) 1532 | -10/Materials | Entered Mines 1835 | -10/Mines | Lost 3 parts (2n1w) 1981 | -10/Mines | Assembled infested the area 1986 | -10/Mines | Assisted by a Guerilla fighting off Assembled 2011 | -10/Mines | Core integrity fell below 50% 2142 | -10/Mines | Learned location of Zion (-6) 2149 | -10/Mines | Discovered new exit (range 11) 2163 | -10/Mines | Received a Rocket Launcher from a helpful Derelict 2191 | -10/Mines | Discovered new exit (range 6) 2210 | -10/Mines | Entered Materials 2210 | -9/Materials | Evolved 2 slots: Propulsion x1, Utility x1 2584 | -9/Materials | Build established: Scavenger-Mutant 2593 | -9/Materials | Discovered new exit (range 14) 3493 | -9/Materials | Repaired Seismic Detector 3805 | -9/Materials | Discovered new exit (range 13) 4058 | -9/Materials | Entered Mines 4084 | -9/Mines | Learned location of Recycling (-8) 4152 | -9/Mines | Found a damaged Exp. Sensor Array with a note attached 4155 | -9/Mines | Found Prototype Device 4268 | -9/Mines | Deemed a non-threat by the Exiles lab entrance 4269 | -9/Mines | Discovered new exit (range 5) 4294 | -9/Mines | Build established: Mutant 4370 | -9/Mines | Discovered new exit (range 10) 4384 | -9/Mines | Met a Derelict testing a Signal Generator 4439 | -9/Mines | Received a Mining Laser from a helpful Derelict 4596 | -9/Mines | Excavation squad dispatched 4596 | -9/Mines | A large section of the Mines collapsed 4729 | -9/Mines | Entered Exiles 4773 | -9/Exiles | Met 8R-AWN 4792 | -9/Exiles | Met EX-HEX 4872 | -9/Exiles | Met EX-DEC 4997 | -9/Exiles | Discovered new exit (range 15) 5019 | -9/Exiles | Entered Mines 5379 | -8/Mines | Lost 3 parts (2n1u) 5421 | -8/Mines | Discovered new exit (range 14) 5677 | -8/Mines | Discovered new exit (range 2) 5734 | -8/Mines | Build established: Scavenger-Mutant 5745 | -8/Mines | Entered Materials 5745 | -8/Materials | Evolved 2 slots: Propulsion x1, Utility x1 5746 | -8/Materials | Identified exit to Storage 6317 | -8/Materials | Discovered exit to Storage (range 12) 6609 | -8/Materials | Repaired Imp. Treads 6651 | -8/Materials | Entered Storage 6874 | -8/Storage | Garrison activated, responded to threat 6969 | -8/Storage | Assisted by bots powering up and referring to "LRC-V3" 7095 | -8/Storage | Used back door to open Recycling access 7095 | -8/Storage | Discovered new exit (range 5) 7100 | -8/Storage | Lost 5 allies 7264 | -8/Storage | Identified Exp. Sensor Array 7287 | -8/Storage | Build established: Commander-Mutant 7512 | -8/Storage | Found Prototype Protection 7512 | -8/Storage | Identified Lgt. Regenerative Plating 7767 | -8/Storage | Lost 3 allies 8055 | -8/Storage | Lost 5 allies 8124 | -8/Storage | Lost 5 allies 8338 | -8/Storage | Build established: Scavenger-Mutant 8439 | -8/Storage | Learned location of Armory (-4) 8675 | -8/Storage | Entered Recycling 8676 | -8/Recycling | Met a Zionite searching for Scraptown 8879 | -8/Recycling | Build established: Mutant 9331 | -8/Recycling | Discovered new exit (range 16) 9541 | -8/Recycling | Identified exit to Factory 9546 | -8/Recycling | Entered Factory 9546 | -6/Factory | Evolved 4 slots: Propulsion x2, Utility x2 9816 | -6/Factory | Build established: Hacker-Scout 9957 | -6/Factory | Repaired Broken Exp. Sensor Array 9976 | -6/Factory | Identified exit to Lower Caves 9976 | -6/Factory | Identified exit to Extension 10160 | -6/Factory | Discovered new exit (range 16) 10165 | -6/Factory | Entered Extension 10234 | -6/Extension | Rescued a captive Derelict 10238 | -6/Extension | Rescued a captive Derelict 10427 | -6/Extension | Build established: Hacker-Sprinter 10996 | -6/Extension | Rescued a captive Derelict 10997 | -6/Extension | Rescued a captive Derelict 11007 | -6/Extension | Rescued A7 11362 | -6/Extension | Spotted B-75 Beast 11381 | -6/Extension | Allies destroyed B-75 Beast 11475 | -6/Extension | Spotted B-75 Beast 11518 | -6/Extension | Destroyed B-75 Beast 11615 | -6/Extension | Disrupted transfer network 11615 | -6/Extension | Rescued a captive Derelict 11776 | -6/Extension | Rescued a captive Derelict 11777 | -6/Extension | Rescued a captive Derelict 11782 | -6/Extension | Rescued a captive Derelict 11784 | -6/Extension | Rescued a captive Derelict 11876 | -6/Extension | Rescued a captive Derelict 11876 | -6/Extension | Rescued a captive Derelict 11876 | -6/Extension | Rescued a captive Derelict 11882 | -6/Extension | Lost 4 allies 12076 | -6/Extension | Discovered new exit (range 10) 12077 | -6/Extension | Discovered new exit (range 6) 12187 | -6/Extension | Identified exit to Cetus 12194 | -6/Extension | Entered Cetus 12194 | -6/Cetus | Accompanied by 11 allies (A7) 12199 | -6/Cetus | Acquired a Cetus Manufacturing Module code from A7 12199 | -6/Cetus | Spotted Cetus Guard 12199 | -6/Cetus | Spotted Cetus Guard 12213 | -6/Cetus | Spotted Cetus Guard 12213 | -6/Cetus | Spotted Cetus Guard 12218 | -6/Cetus | Allies destroyed Cetus Guard 12223 | -6/Cetus | Allies destroyed Cetus Guard 12228 | -6/Cetus | Allies destroyed Cetus Guard 12337 | -6/Cetus | Started Cetus Manufacturing Module 12362 | -6/Cetus | Manufactured an Enhanced Grunt 12387 | -6/Cetus | Manufactured an Enhanced Grunt 12412 | -6/Cetus | Manufactured an Enhanced Grunt 12437 | -6/Cetus | Manufactured an Enhanced Grunt 12448 | -6/Cetus | Discovered new exit (range 16) 12462 | -6/Cetus | Manufactured an Enhanced Grunt 12808 | -6/Cetus | Spotted Cetus Guard 12808 | -6/Cetus | Spotted Cetus Guard 12814 | -6/Cetus | Allies destroyed Cetus Guard 12815 | -6/Cetus | Spotted Cetus Guard 12815 | -6/Cetus | Spotted Cetus Guard 12827 | -6/Cetus | Allies destroyed Cetus Guard 12829 | -6/Cetus | Allies destroyed Cetus Guard 12839 | -6/Cetus | Discovered new exit (range 15) 12847 | -6/Cetus | Met Revision 17 12944 | -6/Cetus | Security sweep announced 13003 | -6/Cetus | Discovered new exit (range 15) 13006 | -6/Cetus | Identified exit to Factory 13044 | -6/Cetus | Murdered A7 13047 | -6/Cetus | Extracted ID and sensor layout for unrecognized location from A7's data core 13104 | -6/Cetus | Entered Factory 13104 | -5/Factory | Accompanied by 14 allies 13104 | -5/Factory | Evolved 2 slots: Utility x2 13371 | -5/Factory | Fabricated Exp. Sensor Array? 13490 | -5/Factory | Lost 3 allies 13492 | -5/Factory | Found Prototype Device 13492 | -5/Factory | Identified Exp. Thermal Shield 13801 | -5/Factory | Build established: Scavenger-Assassin 13802 | -5/Factory | Hacking Suite fried by hacking feedback 13847 | -5/Factory | Repaired Broken Exp. Sensor Array 13992 | -5/Factory | Cargo convoy interrupted 14481 | -5/Factory | Build established: Ninja 15010 | -5/Factory | Build established: Hacker-Ninja 15169 | -5/Factory | System corruption reached 10% 15202 | -5/Factory | Lost 5 parts (1p2n1u1w) 15313 | -5/Factory | Repaired Phasing Sabre 15463 | -5/Factory | Discovered new exit (range 4) 15465 | -5/Factory | Identified exit to Factory 15468 | -5/Factory | Entered another Factory area 15468 | -4/Factory | Evolved 2 slots: Utility x2 15490 | -4/Factory | Discovered new exit (range 10) 15498 | -4/Factory | Lost 3 parts (1p1n1u) 15499 | -4/Factory | Build established: Hacker-Scout 15499 | -4/Factory | Identified exit to Research 15587 | -4/Factory | Repaired Imp. Utility Shielding 15638 | -4/Factory | Repaired Gravmag Array 15699 | -4/Factory | Adv. Hacking Suite fried by hacking feedback 15884 | -4/Factory | Garrison activated, responded to threat 15937 | -4/Factory | Sucked down chute 15937 | -4/Factory | Entered Waste 15938 | -4/Waste | Joined by Warlord forces that had cleared the area 15956 | -4/Waste | Found Broken Gamma Bomb Array 16043 | -4/Waste | Discovered new exit (range 13) 16151 | -4/Waste | Identified exit to Factory 16205 | -4/Waste | Entered Factory 16205 | -4/Factory | Accompanied by 20 allies 16257 | -4/Factory | Repaired Imp. Propulsion Shielding 16344 | -4/Factory | Lost 5 allies 16396 | -4/Factory | Watched by a mysterious "MATRIX" hacker. 16413 | -4/Factory | Discovered new exit (range 14) 16419 | -4/Factory | Identified exit to Upper Caves 16491 | -4/Factory | Lost 3 allies 16494 | -4/Factory | Entered Upper Caves 16494 | -4/Upper Caves | Accompanied by 8 allies 16506 | -4/Upper Caves | Learned Research security intel 16548 | -4/Upper Caves | Attracted the attention of an 0b10 outpost 16782 | -4/Upper Caves | Discovered new exit (range 12) 16840 | -4/Upper Caves | Identified exit to Upper Caves 16918 | -4/Upper Caves | Entered another Upper Caves area 16918 | -4/Upper Caves | Accompanied by 9 allies 16929 | -4/Upper Caves | Discovered exit to Research (range 20) 17188 | -4/Upper Caves | Attracted the attention of an 0b10 checkpoint 17203 | -4/Upper Caves | Learned 4 Research zone layouts 17315 | -4/Upper Caves | Lost 5 allies 17732 | -4/Upper Caves | Discovered new exit (range 3) 17736 | -4/Upper Caves | Identified exit to Warlord 17749 | -4/Upper Caves | Entered Warlord 17749 | -4/Warlord | Accompanied by 3 allies 17832 | -4/Warlord | Received a Watcher feed algorithm from an ecstatic Tinkerer 18034 | -4/Warlord | Visited the Vortex Lab 18039 | -4/Warlord | Found Prototype Piercing Weapon 18052 | -4/Warlord | Warlord's base attacked by MAIN.C 18111 | -4/Warlord | Met Warlord 18164 | -4/Warlord | Identified Vortex Lance 18171 | -4/Warlord | Found Prototype Processor 18171 | -4/Warlord | Identified Spectral Analyzer 18175 | -4/Warlord | Found Prototype Device 18175 | -4/Warlord | Identified Thermal Barrier 18263 | -4/Warlord | Found Prototype Ballistic Cannon 18263 | -4/Warlord | Identified Hvy. Autocannon 18280 | -4/Warlord | Warlord forces counterattacked 18375 | -4/Warlord | Lost 11 allies 18480 | -4/Warlord | Spotted Striker 18497 | -4/Warlord | Spotted Executioner 18513 | -4/Warlord | Build established: Hacker-Mutant 18544 | -4/Warlord | Lost 11 allies 18574 | -4/Warlord | Found Vortex Lance 18727 | -4/Warlord | Warlord base infiltrated, sounded retreat 18768 | -4/Warlord | Spotted Striker 18768 | -4/Warlord | Spotted Executioner 18817 | -4/Warlord | Spotted Striker 18829 | -4/Warlord | Spotted Striker 18856 | -4/Warlord | Spotted Executioner 18857 | -4/Warlord | Lost 5 allies 18857 | -4/Warlord | Found Prototype Launcher 18857 | -4/Warlord | Identified Chain Missile Launcher 18864 | -4/Warlord | Spotted Striker 18865 | -4/Warlord | Found Prototype Device 18865 | -4/Warlord | Identified Exp. Shock Absorption System 18880 | -4/Warlord | Spotted Striker 18906 | -4/Warlord | Spotted Striker 18907 | -4/Warlord | P-70 Sage assimilated allied OG-SYH(M) 18907 | -4/Warlord | P-70 Sage assimilated allied PH-Z4W(b) 18916 | -4/Warlord | Spotted Executioner 18935 | -4/Warlord | Discovered new exit (range 19) 18939 | -4/Warlord | Lost 15 allies 18944 | -4/Warlord | Identified exit to Proximity Caves 18945 | -4/Warlord | Entered Proximity Caves 18974 | -3/Proximity Caves | Lost 6 parts (1p3n1u1w) 19170 | -3/Proximity Caves | Attracted the attention of an 0b10 checkpoint 19215 | -3/Proximity Caves | Discovered exit to Research (range 8) 19231 | -3/Proximity Caves | Entered Research 19231 | -3/Research | Evolved 2 slots: Power x1, Weapon x1 19253 | -3/Research | Build established: Hacker-Scout 19322 | -3/Research | Identified exit to Quarantine 19426 | -3/Research | Garrison activated, responded to threat 19431 | -3/Research | Revision forces began assault on 0b10 19470 | -3/Research | Lost 5 parts (1p2u2w) 19482 | -3/Research | Found Prototype Processor 19482 | -3/Research | Identified Exp. Signal Interpreter 19577 | -3/Research | Found Hvy. Reactive Plating 19599 | -3/Research | Spotted B-86 Titan 19742 | -3/Research | Repaired Cmb. Linear Gravjet 19899 | -3/Research | Found Exp. Signal Interpreter 19931 | -3/Research | Research terminal network offline 19946 | -3/Research | Discovered new exit (range 19) 19959 | -3/Research | Identified exit to Research 20020 | -3/Research | Found Fusion Bomb Launcher 20076 | -3/Research | Build established: Hacker-Mutant 20347 | -3/Research | Spotted Striker 20350 | -3/Research | Spotted Striker 20467 | -3/Research | Lost 3 allies 20488 | -3/Research | Entered Quarantine 20585 | -3/Quarantine | Central database locked down 20612 | -3/Quarantine | Found Alien Impact Weapon 20612 | -3/Quarantine | Identified Core Stripper 20652 | -3/Quarantine | Found Alien Artifact 20652 | -3/Quarantine | Identified Phase Armor 20730 | -3/Quarantine | Found Alien Artifact 20787 | -3/Quarantine | Build established: Hacker-Scout 20792 | -3/Quarantine | Found Alien Artifact 20888 | -3/Quarantine | Identified Terrabomb (x2) 20888 | -3/Quarantine | Used Terrabomb 21047 | -3/Quarantine | Lost 3 parts (1p2u) 21137 | -3/Quarantine | System corruption reached 10% 21185 | -3/Quarantine | Lost 4 parts (1p3n) 21218 | -3/Quarantine | Found Alien Artifact 21221 | -3/Quarantine | Found Alien Artifact 21232 | -3/Quarantine | Found Alien Artifact 21235 | -3/Quarantine | Found Alien Artifact 21239 | -3/Quarantine | Found Alien Artifact 21311 | -3/Quarantine | Discovered exit to Research (range 4) 21391 | -3/Quarantine | Entered Research 21391 | -2/Research | Warlord forces began assault on 0b10 21391 | -2/Research | Evolved 2 slots: Propulsion x2 21501 | -2/Research | Research machine network offline 21612 | -2/Research | Build established: Hacker-Mutant 21783 | -2/Research | Borebot progress halted 21896 | -2/Research | Met PL-HR7 22043 | -2/Research | Found Prototype Protection 22043 | -2/Research | Identified Centrium Heavy Armor Plating 22045 | -2/Research | Warlord destroyed during the assault 22117 | -2/Research | Borebot progress halted 22178 | -2/Research | Found Prototype Hackware 22178 | -2/Research | Identified Exp. System Shield 22205 | -2/Research | Spotted Striker 22266 | -2/Research | Found Prototype Device 22266 | -2/Research | Identified Exp. Actuator Array 22351 | -2/Research | Borebot progress halted 22478 | -2/Research | Spotted Striker 22486 | -2/Research | Spotted Striker 22487 | -2/Research | Spotted Striker 22502 | -2/Research | Discovered new exit (range 15) 22511 | -2/Research | Identified exit to Testing 22511 | -2/Research | Entered Testing 22540 | -2/Testing | Found Prototype Ballistic Cannon 22542 | -2/Testing | Identified Perforator 22571 | -2/Testing | Found Prototype Device 22571 | -2/Testing | Identified AEGIS Remote Shield 22606 | -2/Testing | Discovered new exit (range 15) 22623 | -2/Testing | Found Prototype Energy Cannon 22623 | -2/Testing | Identified Null Cannon 22655 | -2/Testing | Identified exit to Access 22712 | -2/Testing | Found Prototype Device 22712 | -2/Testing | Identified Exp. Hardlight Generator 22769 | -2/Testing | Found Prototype Energy Gun 22769 | -2/Testing | Identified Warp Gun 23063 | -2/Testing | Entered Access 23063 | -1/Access | Evolved 2 slots: Propulsion x1, Utility x1 23128 | -1/Access | Identified exit to Command 23494 | -1/Access | Lost 3 parts (3n) 23612 | -1/Access | Central database locked down 23709 | -1/Access | Spotted B-99 Colossus 23873 | -1/Access | Lost 11 parts (2p5n3u1w) 23922 | -1/Access | System corruption reached 10% 23972 | -1/Access | Lost 4 parts (1n3u) 24101 | -1/Access | Lost 4 parts (1p3n) 24149 | -1/Access | Identified Hpw. Transdimensional Reconstructor 24149 | -1/Access | Warped through subspace 24194 | -1/Access | Core integrity fell below 50% 24207 | -1/Access | Core integrity fell below 20% 24220 | -1/Access | Destroyed by H-81 Overseer with Heavy Linear Accelerator Last Messages --------------- corruption cleaned. 24193_ Cmb. Linear Gravjet+ destroyed. 24193_ Penetrated by Slug. 24196_ Slug penetrates S-43 Plague. 24196_ S-43 Plague misfires. 24197_ System corrupted: Adv. Sensor Array rejected. 24197_ Acquired Adv. Sensor Array. 24199_ Slammed into S-43 Plague. 24199_ P-80 Master resets S-43 Plague, system corruption cleaned. 24202_ Penetrated by Slug. 24202_ P-80 Master resets S-43 Plague, system corruption cleaned. 24206_ S-43 Plague destroyed. 24209_ Penetrated by Slug. 24209_ Slug penetrates Wall. 24211_ Exp. Signal Interpreter destroyed. 24219_ System corrupted: Component data lost. [Achievement: 20k Club] Map ----- +----------------------------------------------------+ | ?????????????# "" ???# %!] #?????# | | ?????????????# ? #??# #?????# | | ?????????????# ??#??# #?????# | | ?????????????# [ ?????######"=######?????# | | ?????????????##########/????????# %=%= ######### | | ??????????????????????? #???????# [= | | ????????????????????????????????# ! | | ????????????????????????????????# | | ?????????????????????###?#?###### ! | | ?????????????????????? ?# | | ?????????????????????? ?# ###+###### | | ??????????????????????? " ??### ###????????? | | ??????????????????????? """ ????# #??????????? | | ????????????????????????""" ?????# #??????????? | | ???????????????????????? " ?????# #??????????? | | ????????????????????????? ]?????## ##?????????? | | ????????????????????????? ?????# #?????????? | | ????????????????????????##+####### #?????????? | | ????????????????????????# #?????????? | | ?????????????????######## R###### #?????????? | | ?????????????????# + s#????# #?????????? | | ?????????????????# # #????### ###?????????? | | ?????????????????# # #??????# #???????????? | | ?????????????????# ?# #??????# #???????????? | | ?????????????????# =?# #??????# #???????????? | | ?????????????????# ??#@ #??????? #???????????? | | ?????????????????# ??+ #??????? #???????????? | | ?????????????????# ???# #??????? #???????????? | | ?????????????????# ???# #??????? #???????????? | | ?????????????????# ????# #??????? #???????????? | | ?????????????????# ????# #???????/????????????? | | ?????????????????# ?????# #??????? ????????????? | | ?????????????????# ?????# #????????????????????? | | ?????????????????#??????# #????????????????????? | | ????????????????????????? #????????????????????? | | ????????????????????????? #????????????????????? | | ????????????????????????? #????????????????????? | | ????????????????????????? #????????????????????? | | ????????????????????????? #????????????????????? | | ????????????????????????? ????????????????????? | | ????????????????????????? ?????????????????????? | | ??????????????????????????H??????????????????????? | | ?????????????????????????????????????????????????? | | ?????????????????????????????????????????????????? | | ?????????????????????????????????????????????????? | | ?????????????????????????????????????????????????? | | ?????????????????""??????????????????????????????? | | ?????????????????""??????????????????????????????? | | ???????????????""""""????????????????????????????? | | ???????????????""""""????????????????????????????? | +----------------------------------------------------+ Best States ------------- Heat Dissipation 83 Energy Generation 43 Energy Capacity 430 Matter Stores 300 Matter Capacity 300 Sight Range 24 Robot Scan Range 20 Terrain Scan Range 24 Terrain Scan Density 10 ECM Strength 2 Jamming Range 14 Armor Coverage 600 Resistance: KI 40 Utility Shielding 66 Weapon Shielding 33 Weapon Cycling 25 Evasion (%) 67 Target Analysis 12 Recoil Reduction 4 Offensive Hacking 40 Defensive Hacking 16 Item Schematics ----------------- Exp. Sensor Array | -6/Factory | Scanalyzed Imp. VTOL Module | -6/Factory | Scanalyzed Robot Schematics ------------------ None Fabricated ------------ Exp. Sensor Array | x1 | -5/Factory Repaired ---------- Seismic Detector | 15% | -9/Materials Imp. Treads | 14% | -8/Materials Exp. Sensor Array | 62% | -6/Factory | Broken Exp. Sensor Array | 75% | -5/Factory | Broken Phasing Sabre | 12% | -5/Factory Imp. Utility Shielding | 17% | -4/Factory Gravmag Array | 12% | -4/Factory Imp. Propulsion Shielding | 29% | -4/Factory Cmb. Linear Gravjet | 29% | -3/Research Studied --------- VTOL Module | -9/Materials | Hacked Xenon Bombardment Thruster | -6/Factory | Hacked Mic. Fission Core | -5/Factory | Hacked Matter Neutralizer | -4/Factory | Hacked Gyrokinetic Inverter | -4/Factory | Hacked Antimatter Reactor | -4/Factory | Hacked Cmb. Antigrav System | -3/Quarantine | Hacked Cmb. Linear Gravjet | -3/Quarantine | Hacked Imp. Antigrav System | -1/Access | Hacked Alien Tech Used ----------------- Core Stripper Phase Armor Terrabomb High-powered Transdimensional Reconstructor Achievements -------------- 20k Club Collateral Damage Generalissimo Treasure Hunter We Love MA \\IAMDERELICT Challenges ------------ None Game ------ Seed GuidanceSpectralMultitool Manual? 0 Play Time 04:40:14 Cumulative 32.0 hours Start 2026.03.25 @ 22:40:55 End 2026.03.27 @ 21:15:36 Sessions 9 Manual Loads 0 Difficulty Rogue Special Mode None Game No. 15 Rogue 15 Adventurer 0 Explorer 0 Win Type - Total 1 Types 1/0/0/0/0/0/0/0/0/0 Lore% 37 Gallery% 33 Achievement% 32 Wizard Run 0 Options --------- Layout 1 ASCII 0 Keyboard 1 Movement Arrows Keybinds 0 Fullscreen 2 Font 24/Smallcaps Map View 50x35 Zoom Use 0% Tactical HUD 1 Map Filters NONE Filters NONE Steam 1 RUN: f4e81186-a6f5-4826-9a3c-8c216ae52ef8